[Event "Titled Tuesday Blitz August 24 2021"]
[White "Polivanov, Anatoliy"]
[Black "Bryakin, Mikhail"]
[WhiteFideId "14109468"]
[BlackFideId "4165314"]
[WhiteElo "2472"]
[BlackElo "2336"]
[Result "1-0"]
[Round "07"]
[TimeControl "180+1"]
[Date "2021.08.24"]
[WhiteClock "0:00:31"]
[BlackClock "0:01:18"]

1. d4 {[%clk 0:03:00]}  Nf6 {[%clk 0:02:57]} 2. Bg5 {[%clk 0:03:00]}  c5 {[%clk 0:02:51]} 3. Bxf6 {[%clk 0:02:58]}  exf6 {[%clk 0:02:47]} 4. Nc3 {[%clk 0:02:57]}  d6 {[%clk 0:02:45]} 5. dxc5 {[%clk 0:02:54]}  dxc5 {[%clk 0:02:43]} 6. Qxd8+ {[%clk 0:02:54]}  Kxd8 {[%clk 0:02:44]} 7. O-O-O {[%clk 0:02:54]}  Bd7 {[%clk 0:02:44]} 8. e3 {[%clk 0:02:47]}  Nc6 {[%clk 0:02:39]} 9. Nf3 {[%clk 0:02:47]}  a6 {[%clk 0:02:34]} 10. Bc4 {[%clk 0:02:46]}  Kc7 {[%clk 0:02:30]} 11. Nd5+ {[%clk 0:02:43]}  Kb8 {[%clk 0:02:30]} 12. Nb6 {[%clk 0:02:43]}  Be6 {[%clk 0:02:29]} 13. Bxe6 {[%clk 0:02:41]}  fxe6 {[%clk 0:02:30]} 14. Nxa8 {[%clk 0:02:41]}  Kxa8 {[%clk 0:02:31]} 15. Rd7 {[%clk 0:02:40]}  Kb8 {[%clk 0:02:32]} 16. Rhd1 {[%clk 0:02:39]}  Kc8 {[%clk 0:02:33]} 17. Rf7 {[%clk 0:02:30]}  Nd8 {[%clk 0:02:30]} 18. Rfd7 {[%clk 0:02:24]}  Nc6 {[%clk 0:02:30]} 19. Rf7 {[%clk 0:02:14]}  Nd8 {[%clk 0:02:24]} 20. Rxd8+ {[%clk 0:02:14]}  Kxd8 {[%clk 0:02:24]} 21. Rxb7 {[%clk 0:02:14]}  g6 {[%clk 0:02:22]} 22. Ra7 {[%clk 0:02:10]}  Rg8 {[%clk 0:02:10]} 23. Nd2 {[%clk 0:02:02]}  Rg7 {[%clk 0:02:05]} 24. Rxa6 {[%clk 0:01:54]}  Kd7 {[%clk 0:02:03]} 25. Ra7+ {[%clk 0:01:54]}  Kc6 {[%clk 0:02:04]} 26. Rxg7 {[%clk 0:01:53]}  Bxg7 {[%clk 0:02:05]} 27. a4 {[%clk 0:01:47]}  f5 {[%clk 0:01:55]} 28. Nc4 {[%clk 0:01:45]}  Bf6 {[%clk 0:01:53]} 29. c3 {[%clk 0:01:38]}  e5 {[%clk 0:01:51]} 30. f3 {[%clk 0:01:23]}  e4 {[%clk 0:01:40]} 31. fxe4 {[%clk 0:01:22]}  fxe4 {[%clk 0:01:41]} 32. Kd2 {[%clk 0:01:22]}  Kd5 {[%clk 0:01:36]} 33. b3 {[%clk 0:01:21]}  Bd8 {[%clk 0:01:30]} 34. Na3 {[%clk 0:01:05]}  Ba5 {[%clk 0:01:28]} 35. Nc2 {[%clk 0:01:05]}  Bc7 {[%clk 0:01:25]} 36. h3 {[%clk 0:00:59]}  h5 {[%clk 0:01:24]} 37. c4+ {[%clk 0:00:51]}  Kc6 {[%clk 0:01:19]} 38. Na3 {[%clk 0:00:39]}  Ba5+ {[%clk 0:01:19]} 39. Ke2 {[%clk 0:00:38]}  Bc3 {[%clk 0:01:14]} 40. Nb1 {[%clk 0:00:37]}  Bb4 {[%clk 0:01:14]} 41. Nd2 {[%clk 0:00:37]}  Bxd2 {[%clk 0:01:15]} 42. Kxd2 {[%clk 0:00:37]}  Kb6 {[%clk 0:01:16]} 43. h4 {[%clk 0:00:32]}  Ka6 {[%clk 0:01:14]} 44. Kc3 {[%clk 0:00:32]}  Ka5 {[%clk 0:01:15]} 45. b4+ {[%clk 0:00:33]}  cxb4+ {[%clk 0:01:15]} 46. Kb3 {[%clk 0:00:33]}  Kb6 {[%clk 0:01:15]} 47. Kxb4 {[%clk 0:00:33]}  Kc6 {[%clk 0:01:16]} 48. a5 {[%clk 0:00:33]}  Kb7 {[%clk 0:01:17]} 49. Kc5 {[%clk 0:00:32]}  Ka7 {[%clk 0:01:18]} 50. Kd4 {[%clk 0:00:33]}  Ka6 {[%clk 0:01:19]} 51. Kxe4 {[%clk 0:00:33]}  Kxa5 {[%clk 0:01:20]} 52. Kd5 {[%clk 0:00:31]}  Kb6 {[%clk 0:01:21]} 53. Kd6 {[%clk 0:00:31]}  Kb7 {[%clk 0:01:21]} 54. c5 {[%clk 0:00:31]}  Kc8 {[%clk 0:01:20]} 55. Ke6 {[%clk 0:00:31]}  Kc7 {[%clk 0:01:19]} 56. Kf6 {[%clk 0:00:31]}  Kc6 {[%clk 0:01:18]} 57. Kxg6 {[%clk 0:00:31]}  Kxc5 {[%clk 0:01:18]} 58. Kxh5 {[%clk 0:00:31]} 1-0


[Site "https://www.chess.com"]

[Event "Titled Tuesday Blitz August 24 2021"]
[White "Potapova, Margarita"]
[Black "Ivanisevic, Ivan"]
[WhiteFideId "14126869"]
[BlackFideId "912417"]
[WhiteElo "2214"]
[BlackElo "2499"]
[Result "1-0"]
[Round "07"]
[TimeControl "180+1"]
[Date "2021.08.24"]
[WhiteClock "0:00:45"]
[BlackClock "0:01:14"]

1. e4 {[%clk 0:03:00]}  e5 {[%clk 0:02:59]} 2. Nf3 {[%clk 0:02:59]}  Nc6 {[%clk 0:02:59]} 3. Nc3 {[%clk 0:02:58]}  Nf6 {[%clk 0:02:58]} 4. d4 {[%clk 0:02:59]}  exd4 {[%clk 0:02:59]} 5. Nxd4 {[%clk 0:02:59]}  Bb4 {[%clk 0:02:59]} 6. Nxc6 {[%clk 0:02:59]}  bxc6 {[%clk 0:03:00]} 7. Bd3 {[%clk 0:03:00]}  O-O {[%clk 0:03:00]} 8. O-O {[%clk 0:03:00]}  Re8 {[%clk 0:03:00]} 9. Bg5 {[%clk 0:02:59]}  h6 {[%clk 0:02:59]} 10. Bh4 {[%clk 0:02:21]}  Be7 {[%clk 0:02:57]} 11. e5 {[%clk 0:02:09]}  Nd5 {[%clk 0:02:56]} 12. Bg3 {[%clk 0:02:00]}  Rb8 {[%clk 0:02:45]} 13. Qf3 {[%clk 0:01:54]}  Nb4 {[%clk 0:02:16]} 14. Bc4 {[%clk 0:01:50]}  Rf8 {[%clk 0:02:05]} 15. a3 {[%clk 0:01:35]}  Nxc2 {[%clk 0:01:55]} 16. Rac1 {[%clk 0:01:31]}  Nd4 {[%clk 0:01:54]} 17. Qe4 {[%clk 0:01:28]}  c5 {[%clk 0:01:52]} 18. Bd3 {[%clk 0:01:18]}  g6 {[%clk 0:01:51]} 19. b4 {[%clk 0:01:00]}  Bb7 {[%clk 0:01:42]} 20. Nd5 {[%clk 0:00:54]}  d6 {[%clk 0:01:40]} 21. bxc5 {[%clk 0:00:48]}  dxc5 {[%clk 0:01:33]} 22. Bc4 {[%clk 0:00:48]}  Ba8 {[%clk 0:01:22]} 23. Nxe7+ {[%clk 0:00:43]}  Qxe7 {[%clk 0:01:21]} 24. Qxg6+ {[%clk 0:00:44]}  Kh8 {[%clk 0:01:14]} 25. Qxh6+ {[%clk 0:00:45]}  Kg8 {[%clk 0:01:14]} 26. Bh4 {[%clk 0:00:45]} 1-0


[Site "https://www.chess.com"]

[Event "Titled Tuesday Blitz August 24 2021"]
[White "Quiroga Garza, Juan Manuel"]
[Black "Borsuk, Konstantin"]
[WhiteFideId "5117844"]
[BlackFideId "14113406"]
[WhiteElo "2003"]
[BlackElo "2382"]
[Result "1-0"]
[Round "07"]
[TimeControl "180+1"]
[Date "2021.08.24"]
[WhiteClock "0:01:00"]
[BlackClock "0:00:25"]

1. e4 {[%clk 0:03:00]}  e6 {[%clk 0:02:38]} 2. d4 {[%clk 0:03:00]}  d5 {[%clk 0:02:38]} 3. Nc3 {[%clk 0:03:00]}  Bb4 {[%clk 0:02:38]} 4. e5 {[%clk 0:03:00]}  b6 {[%clk 0:02:38]} 5. a3 {[%clk 0:03:00]}  Bf8 {[%clk 0:02:39]} 6. f4 {[%clk 0:03:00]}  Ne7 {[%clk 0:02:38]} 7. Nf3 {[%clk 0:03:00]}  h5 {[%clk 0:02:36]} 8. Bd3 {[%clk 0:02:58]}  Ba6 {[%clk 0:02:36]} 9. O-O {[%clk 0:02:57]}  Bxd3 {[%clk 0:02:34]} 10. Qxd3 {[%clk 0:02:58]}  Nf5 {[%clk 0:02:33]} 11. Ne2 {[%clk 0:02:58]}  h4 {[%clk 0:02:32]} 12. c4 {[%clk 0:02:57]}  c6 {[%clk 0:02:30]} 13. b4 {[%clk 0:02:57]}  Be7 {[%clk 0:02:26]} 14. b5 {[%clk 0:02:57]}  dxc4 {[%clk 0:02:21]} 15. Qxc4 {[%clk 0:02:55]}  cxb5 {[%clk 0:02:20]} 16. Qxb5+ {[%clk 0:02:55]}  Qd7 {[%clk 0:02:13]} 17. Qxd7+ {[%clk 0:02:53]}  Nxd7 {[%clk 0:02:05]} 18. Rd1 {[%clk 0:02:52]}  O-O-O {[%clk 0:01:59]} 19. d5 {[%clk 0:02:52]}  exd5 {[%clk 0:01:59]} 20. Rxd5 {[%clk 0:02:52]}  Nc5 {[%clk 0:01:59]} 21. Rxd8+ {[%clk 0:02:39]}  Rxd8 {[%clk 0:02:00]} 22. Bb2 {[%clk 0:02:39]}  Nd3 {[%clk 0:01:57]} 23. Bc3 {[%clk 0:02:33]}  Bc5+ {[%clk 0:01:55]} 24. Kh1 {[%clk 0:02:09]}  Nf2+ {[%clk 0:01:51]} 25. Kg1 {[%clk 0:02:09]}  Ne4+ {[%clk 0:01:40]} 26. Kh1 {[%clk 0:02:05]}  Kb7 {[%clk 0:01:32]} 27. h3 {[%clk 0:01:53]}  Nfg3+ {[%clk 0:01:26]} 28. Nxg3 {[%clk 0:01:52]}  hxg3 {[%clk 0:01:27]} 29. Bb4 {[%clk 0:01:50]}  Nf2+ {[%clk 0:01:21]} 30. Kg1 {[%clk 0:01:50]}  Be3 {[%clk 0:01:21]} 31. Kf1 {[%clk 0:01:47]}  Bxf4 {[%clk 0:01:20]} 32. Re1 {[%clk 0:01:40]}  Rc8 {[%clk 0:01:11]} 33. e6 {[%clk 0:01:36]}  fxe6 {[%clk 0:01:07]} 34. Rxe6 {[%clk 0:01:37]}  Rc1+ {[%clk 0:01:04]} 35. Ke2 {[%clk 0:01:34]}  Rc2+ {[%clk 0:01:04]} 36. Kf1 {[%clk 0:01:33]}  Nd3 {[%clk 0:01:02]} 37. Re7+ {[%clk 0:01:31]}  Ka6 {[%clk 0:01:02]} 38. Nd4 {[%clk 0:01:25]}  Rf2+ {[%clk 0:00:54]} 39. Kg1 {[%clk 0:01:25]}  Nc1 {[%clk 0:00:44]} 40. a4 {[%clk 0:01:15]}  Rb2 {[%clk 0:00:39]} 41. Nc6 {[%clk 0:01:15]}  b5 {[%clk 0:00:35]} 42. a5 {[%clk 0:01:11]}  Be3+ {[%clk 0:00:28]} 43. Kh1 {[%clk 0:01:01]}  Nd3 {[%clk 0:00:25]} 44. Nb8# {[%clk 0:01:00]} 1-0


[Site "https://www.chess.com"]

[Event "Titled Tuesday Blitz August 24 2021"]
[White "Seliverstov, Vladimir"]
[Black "Sadhwani, Raunak"]
[WhiteFideId "4192036"]
[BlackFideId "35093487"]
[WhiteElo "2489"]
[BlackElo "2514"]
[Result "0-1"]
[Round "07"]
[TimeControl "180+1"]
[Date "2021.08.24"]
[WhiteClock "0:00:36"]
[BlackClock "0:00:47"]

1. d4 {[%clk 0:03:00]}  d6 {[%clk 0:02:58]} 2. Bf4 {[%clk 0:02:53]}  g6 {[%clk 0:02:57]} 3. e3 {[%clk 0:02:54]}  Bg7 {[%clk 0:02:58]} 4. Nf3 {[%clk 0:02:54]}  Nd7 {[%clk 0:02:57]} 5. h3 {[%clk 0:02:54]}  e5 {[%clk 0:02:57]} 6. Bh2 {[%clk 0:02:54]}  Ne7 {[%clk 0:02:57]} 7. Nc3 {[%clk 0:02:50]}  O-O {[%clk 0:02:57]} 8. Bc4 {[%clk 0:02:50]}  Nc6 {[%clk 0:02:54]} 9. O-O {[%clk 0:02:47]}  h6 {[%clk 0:02:54]} 10. a4 {[%clk 0:02:43]}  Kh7 {[%clk 0:02:53]} 11. a5 {[%clk 0:02:43]}  a6 {[%clk 0:02:54]} 12. dxe5 {[%clk 0:02:35]}  Ndxe5 {[%clk 0:02:55]} 13. Nxe5 {[%clk 0:02:35]}  Nxe5 {[%clk 0:02:56]} 14. Bb3 {[%clk 0:02:35]}  Be6 {[%clk 0:02:47]} 15. Nd5 {[%clk 0:02:32]}  Nd7 {[%clk 0:02:25]} 16. c3 {[%clk 0:02:30]}  Nf6 {[%clk 0:02:24]} 17. Re1 {[%clk 0:02:17]}  Rb8 {[%clk 0:02:10]} 18. e4 {[%clk 0:02:12]}  Nxd5 {[%clk 0:02:09]} 19. Bxd5 {[%clk 0:02:12]}  Qg5 {[%clk 0:01:54]} 20. Qf3 {[%clk 0:02:03]}  Be5 {[%clk 0:01:49]} 21. Bxe5 {[%clk 0:01:53]}  Qxe5 {[%clk 0:01:50]} 22. Rad1 {[%clk 0:01:49]}  c6 {[%clk 0:01:49]} 23. Bxe6 {[%clk 0:01:49]}  fxe6 {[%clk 0:01:50]} 24. Qe3 {[%clk 0:01:46]}  Rbd8 {[%clk 0:01:49]} 25. Qb6 {[%clk 0:01:46]}  Rd7 {[%clk 0:01:49]} 26. Re3 {[%clk 0:01:43]}  Rf4 {[%clk 0:01:42]} 27. Red3 {[%clk 0:01:27]}  Rxe4 {[%clk 0:01:36]} 28. Qa7 {[%clk 0:01:16]}  Re1+ {[%clk 0:01:34]} 29. Rxe1 {[%clk 0:01:16]}  Qxe1+ {[%clk 0:01:35]} 30. Kh2 {[%clk 0:01:16]}  Qe5+ {[%clk 0:01:36]} 31. g3 {[%clk 0:01:15]}  Qxa5 {[%clk 0:01:20]} 32. Rf3 {[%clk 0:01:15]}  Qd8 {[%clk 0:01:03]} 33. h4 {[%clk 0:01:11]}  e5 {[%clk 0:01:00]} 34. h5 {[%clk 0:01:10]}  gxh5 {[%clk 0:00:59]} 35. Qe3 {[%clk 0:01:10]}  Kg7 {[%clk 0:00:57]} 36. Rf5 {[%clk 0:01:02]}  Qe8 {[%clk 0:00:57]} 37. f4 {[%clk 0:00:59]}  Qg6 {[%clk 0:00:56]} 38. Qe4 {[%clk 0:00:54]}  Rf7 {[%clk 0:00:54]} 39. Rxf7+ {[%clk 0:00:54]}  Kxf7 {[%clk 0:00:55]} 40. Qb4 {[%clk 0:00:52]}  b5 {[%clk 0:00:50]} 41. fxe5 {[%clk 0:00:52]}  Qc2+ {[%clk 0:00:50]} 42. Kg1 {[%clk 0:00:46]}  Qd1+ {[%clk 0:00:50]} 43. Kf2 {[%clk 0:00:45]}  Qd2+ {[%clk 0:00:51]} 44. Kf1 {[%clk 0:00:45]}  Qd3+ {[%clk 0:00:51]} 45. Kf2 {[%clk 0:00:41]}  Qf5+ {[%clk 0:00:51]} 46. Kg2 {[%clk 0:00:40]}  Qxe5 {[%clk 0:00:51]} 47. Qh4 {[%clk 0:00:39]}  Qd5+ {[%clk 0:00:51]} 48. Kg1 {[%clk 0:00:37]}  Qd1+ {[%clk 0:00:50]} 49. Kg2 {[%clk 0:00:36]}  Qd2+ {[%clk 0:00:51]} 50. Kh3 {[%clk 0:00:36]}  Qg5 {[%clk 0:00:47]} 0-1


[Site "https://www.chess.com"]

[Event "Titled Tuesday Blitz August 24 2021"]
[White "Sevian, Samuel"]
[Black "Yeletsky, Ivan"]
[WhiteFideId "2040506"]
[BlackFideId "24180327"]
[WhiteElo "2987"]
[BlackElo "2344"]
[Result "1-0"]
[Round "07"]
[TimeControl "180+1"]
[Date "2021.08.24"]
[WhiteClock "0:02:22"]
[BlackClock "0:00:53"]

1. d4 {[%clk 0:03:00]}  Nf6 {[%clk 0:02:48]} 2. c4 {[%clk 0:02:57]}  c6 {[%clk 0:02:44]} 3. Bf4 {[%clk 0:02:56]}  d5 {[%clk 0:02:45]} 4. e3 {[%clk 0:02:56]}  Qb6 {[%clk 0:02:38]} 5. Qb3 {[%clk 0:02:51]}  Nh5 {[%clk 0:02:36]} 6. Bg5 {[%clk 0:02:50]}  Qa5+ {[%clk 0:02:32]} 7. Qc3 {[%clk 0:02:48]}  Qd8 {[%clk 0:02:29]} 8. Be2 {[%clk 0:02:46]}  Nf6 {[%clk 0:02:28]} 9. Bf4 {[%clk 0:02:46]}  Ne4 {[%clk 0:02:28]} 10. Qb3 {[%clk 0:02:46]}  a5 {[%clk 0:02:17]} 11. Nf3 {[%clk 0:02:43]}  a4 {[%clk 0:02:17]} 12. Qc2 {[%clk 0:02:43]}  Bf5 {[%clk 0:02:18]} 13. Nh4 {[%clk 0:02:42]}  Bg6 {[%clk 0:02:15]} 14. Nxg6 {[%clk 0:02:40]}  hxg6 {[%clk 0:02:16]} 15. h3 {[%clk 0:02:40]}  e6 {[%clk 0:02:16]} 16. Nc3 {[%clk 0:02:39]}  Bb4 {[%clk 0:01:57]} 17. O-O {[%clk 0:02:38]}  Bxc3 {[%clk 0:01:56]} 18. bxc3 {[%clk 0:02:39]}  Nd7 {[%clk 0:01:55]} 19. Rab1 {[%clk 0:02:39]}  b6 {[%clk 0:01:53]} 20. cxd5 {[%clk 0:02:38]}  cxd5 {[%clk 0:01:53]} 21. c4 {[%clk 0:02:38]}  Rc8 {[%clk 0:01:52]} 22. Rfc1 {[%clk 0:02:37]}  g5 {[%clk 0:01:48]} 23. Bh2 {[%clk 0:02:36]}  Qf6 {[%clk 0:01:33]} 24. f3 {[%clk 0:02:35]}  g4 {[%clk 0:01:29]} 25. fxe4 {[%clk 0:02:35]}  gxh3 {[%clk 0:01:27]} 26. g4 {[%clk 0:02:33]}  Qh6 {[%clk 0:01:13]} 27. Bf4 {[%clk 0:02:30]}  h2+ {[%clk 0:01:07]} 28. Kh1 {[%clk 0:02:29]}  g5 {[%clk 0:01:08]} 29. Bd6 {[%clk 0:02:27]}  Nf6 {[%clk 0:00:53]} 30. Qxa4+ {[%clk 0:02:27]}  Kd8 {[%clk 0:00:53]} 31. Qa7 {[%clk 0:02:22]} 1-0


[Site "https://www.chess.com"]

[Event "Titled Tuesday Blitz August 24 2021"]
[White "Shahade, Gregory"]
[Black "Maevsky, Nikolay"]
[WhiteFideId "2009064"]
[BlackFideId "4198220"]
[WhiteElo "2691"]
[BlackElo "2213"]
[Result "0-1"]
[Round "07"]
[TimeControl "180+1"]
[Date "2021.08.24"]
[WhiteClock "0:00:08"]
[BlackClock "0:00:06"]

1. e4 {[%clk 0:03:00]}  c6 {[%clk 0:02:41]} 2. Nc3 {[%clk 0:02:56]}  d5 {[%clk 0:02:40]} 3. Nf3 {[%clk 0:02:55]}  Bg4 {[%clk 0:02:39]} 4. h3 {[%clk 0:02:55]}  Bxf3 {[%clk 0:02:37]} 5. Qxf3 {[%clk 0:02:56]}  Nf6 {[%clk 0:02:34]} 6. Be2 {[%clk 0:02:44]}  e6 {[%clk 0:02:32]} 7. O-O {[%clk 0:02:38]}  Bc5 {[%clk 0:02:22]} 8. Rd1 {[%clk 0:02:35]}  dxe4 {[%clk 0:02:16]} 9. Nxe4 {[%clk 0:02:34]}  Nxe4 {[%clk 0:02:16]} 10. Qxe4 {[%clk 0:02:35]}  Qd5 {[%clk 0:02:11]} 11. Qg4 {[%clk 0:02:30]}  O-O {[%clk 0:02:05]} 12. d4 {[%clk 0:02:13]}  Be7 {[%clk 0:02:04]} 13. c4 {[%clk 0:02:05]}  Qa5 {[%clk 0:02:02]} 14. b4 {[%clk 0:01:24]}  Qxb4 {[%clk 0:02:01]} 15. Bh6 {[%clk 0:01:19]}  Bf6 {[%clk 0:02:01]} 16. Rab1 {[%clk 0:01:18]}  Qe7 {[%clk 0:02:01]} 17. d5 {[%clk 0:01:15]}  exd5 {[%clk 0:01:58]} 18. cxd5 {[%clk 0:01:15]}  cxd5 {[%clk 0:01:51]} 19. Rxd5 {[%clk 0:01:12]}  Nc6 {[%clk 0:01:42]} 20. Rd7 {[%clk 0:00:44]}  Qe6 {[%clk 0:01:42]} 21. Qxe6 {[%clk 0:00:31]}  fxe6 {[%clk 0:01:41]} 22. Be3 {[%clk 0:00:27]}  b6 {[%clk 0:01:27]} 23. Bf3 {[%clk 0:00:27]}  Ne5 {[%clk 0:01:27]} 24. Bxa8 {[%clk 0:00:26]}  Nxd7 {[%clk 0:01:27]} 25. Be4 {[%clk 0:00:26]}  Rc8 {[%clk 0:01:22]} 26. Rd1 {[%clk 0:00:25]}  Nf8 {[%clk 0:01:13]} 27. g3 {[%clk 0:00:19]}  Kf7 {[%clk 0:01:13]} 28. Kg2 {[%clk 0:00:17]}  h6 {[%clk 0:01:12]} 29. h4 {[%clk 0:00:16]}  Ke7 {[%clk 0:01:10]} 30. Bf4 {[%clk 0:00:14]}  Rd8 {[%clk 0:00:43]} 31. Rc1 {[%clk 0:00:14]}  g5 {[%clk 0:00:30]} 32. hxg5 {[%clk 0:00:14]}  Bxg5 {[%clk 0:00:26]} 33. Bxg5+ {[%clk 0:00:14]}  hxg5 {[%clk 0:00:26]} 34. Rc7+ {[%clk 0:00:14]}  Rd7 {[%clk 0:00:26]} 35. Rc8 {[%clk 0:00:14]}  Kf7 {[%clk 0:00:21]} 36. a4 {[%clk 0:00:13]}  Re7 {[%clk 0:00:18]} 37. Rc1 {[%clk 0:00:08]}  Nd7 {[%clk 0:00:18]} 38. Rh1 {[%clk 0:00:07]}  Nf6 {[%clk 0:00:18]} 39. Bc6 {[%clk 0:00:05]}  Rc7 {[%clk 0:00:18]} 40. Bb5 {[%clk 0:00:05]}  Rc2 {[%clk 0:00:16]} 41. Rd1 {[%clk 0:00:04]}  Ke7 {[%clk 0:00:15]} 42. Kg1 {[%clk 0:00:03]}  Rb2 {[%clk 0:00:14]} 43. Rc1 {[%clk 0:00:03]}  Nd5 {[%clk 0:00:13]} 44. Rc6 {[%clk 0:00:02]}  g4 {[%clk 0:00:10]} 45. Bc4 {[%clk 0:00:02]}  Kd7 {[%clk 0:00:04]} 46. Bb5 {[%clk 0:00:02]}  Ke7 {[%clk 0:00:04]} 47. Rc1 {[%clk 0:00:02]}  Rb4 {[%clk 0:00:04]} 48. Rc8 {[%clk 0:00:02]}  Kd6 {[%clk 0:00:04]} 49. Rd8+ {[%clk 0:00:02]}  Ke5 {[%clk 0:00:04]} 50. Ra8 {[%clk 0:00:02]}  a5 {[%clk 0:00:04]} 51. Rg8 {[%clk 0:00:02]}  Nc3 {[%clk 0:00:04]} 52. Rg5+ {[%clk 0:00:02]}  Kf6 {[%clk 0:00:04]} 53. Rg8 {[%clk 0:00:02]}  Nxb5 {[%clk 0:00:04]} 54. axb5 {[%clk 0:00:02]}  a4 {[%clk 0:00:04]} 55. Ra8 {[%clk 0:00:02]}  Ke5 {[%clk 0:00:03]} 56. Ra6 {[%clk 0:00:02]}  Kd5 {[%clk 0:00:02]} 57. Rxb6 {[%clk 0:00:03]}  Kc5 {[%clk 0:00:02]} 58. Rxe6 {[%clk 0:00:02]}  Kxb5 {[%clk 0:00:02]} 59. Re8 {[%clk 0:00:02]}  a3 {[%clk 0:00:02]} 60. Rb8+ {[%clk 0:00:03]}  Kc4 {[%clk 0:00:02]} 61. Ra8 {[%clk 0:00:03]}  Kb3 {[%clk 0:00:03]} 62. Kg2 {[%clk 0:00:03]}  a2 {[%clk 0:00:03]} 63. f3 {[%clk 0:00:04]}  gxf3+ {[%clk 0:00:03]} 64. Kxf3 {[%clk 0:00:04]}  Ra4 {[%clk 0:00:03]} 65. Rb8+ {[%clk 0:00:05]}  Kc2 {[%clk 0:00:04]} 66. Rc8+ {[%clk 0:00:05]}  Kd2 {[%clk 0:00:04]} 67. Rd8+ {[%clk 0:00:05]}  Kc3 {[%clk 0:00:04]} 68. Rc8+ {[%clk 0:00:05]}  Kd4 {[%clk 0:00:04]} 69. Rd8+ {[%clk 0:00:05]}  Ke5 {[%clk 0:00:04]} 70. Re8+ {[%clk 0:00:06]}  Kf6 {[%clk 0:00:04]} 71. Re1 {[%clk 0:00:06]}  a1=Q {[%clk 0:00:04]} 72. Rxa1 {[%clk 0:00:06]}  Rxa1 {[%clk 0:00:04]} 73. Kg4 {[%clk 0:00:07]}  Ra4+ {[%clk 0:00:04]} 74. Kh5 {[%clk 0:00:08]}  Kg7 {[%clk 0:00:04]} 75. g4 {[%clk 0:00:08]}  Ra5+ {[%clk 0:00:05]} 76. g5 {[%clk 0:00:08]}  Rb5 {[%clk 0:00:05]} 77. Kh4 {[%clk 0:00:08]}  Kg6 {[%clk 0:00:06]} 0-1


[Site "https://www.chess.com"]

[Event "Titled Tuesday Blitz August 24 2021"]
[White "Sjugirov, Sanan"]
[Black "Andreikin, Dmitry"]
[WhiteFideId "4189302"]
[BlackFideId "4158814"]
[WhiteElo "2472"]
[BlackElo "2782"]
[Result "0-1"]
[Round "07"]
[TimeControl "180+1"]
[Date "2021.08.24"]
[WhiteClock "0:00:03"]
[BlackClock "0:01:16"]

1. e4 {[%clk 0:03:00]}  c5 {[%clk 0:02:59]} 2. Nf3 {[%clk 0:03:00]}  e6 {[%clk 0:03:00]} 3. d3 {[%clk 0:03:00]}  Nc6 {[%clk 0:02:59]} 4. g3 {[%clk 0:02:59]}  d5 {[%clk 0:02:59]} 5. Qe2 {[%clk 0:02:58]}  Nge7 {[%clk 0:02:57]} 6. Bg2 {[%clk 0:02:57]}  g6 {[%clk 0:02:57]} 7. h4 {[%clk 0:02:57]}  h6 {[%clk 0:02:55]} 8. O-O {[%clk 0:02:55]}  Bg7 {[%clk 0:02:55]} 9. Re1 {[%clk 0:02:52]}  b6 {[%clk 0:02:47]} 10. e5 {[%clk 0:02:31]}  Ba6 {[%clk 0:02:39]} 11. a4 {[%clk 0:02:23]}  Nf5 {[%clk 0:02:33]} 12. Nc3 {[%clk 0:02:19]}  Nfd4 {[%clk 0:02:26]} 13. Nxd4 {[%clk 0:02:18]}  cxd4 {[%clk 0:02:22]} 14. Nb5 {[%clk 0:02:13]}  Bxe5 {[%clk 0:02:22]} 15. Qg4 {[%clk 0:01:42]}  h5 {[%clk 0:02:14]} 16. Qf3 {[%clk 0:01:34]}  O-O {[%clk 0:02:08]} 17. Bg5 {[%clk 0:01:24]}  Qd7 {[%clk 0:02:03]} 18. Bh3 {[%clk 0:00:32]}  Bg7 {[%clk 0:01:59]} 19. Bf6 {[%clk 0:00:32]}  Rfc8 {[%clk 0:01:40]} 20. Bxg7 {[%clk 0:00:31]}  Kxg7 {[%clk 0:01:40]} 21. Qf4 {[%clk 0:00:31]}  Qe7 {[%clk 0:01:23]} 22. Nxd4 {[%clk 0:00:15]}  Qf6 {[%clk 0:01:23]} 23. Qxf6+ {[%clk 0:00:13]}  Kxf6 {[%clk 0:01:24]} 24. Nb5 {[%clk 0:00:05]}  Nb4 {[%clk 0:01:18]} 25. c3 {[%clk 0:00:03]}  Nc2 {[%clk 0:01:16]} 0-1


[Site "https://www.chess.com"]

[Event "Titled Tuesday Blitz August 24 2021"]
[White "Srihari L R"]
[Black "Timofeev, Artyom"]
[WhiteFideId "46617116"]
[BlackFideId "4140419"]
[WhiteElo "2121"]
[BlackElo "2582"]
[Result "0-1"]
[Round "07"]
[TimeControl "180+1"]
[Date "2021.08.24"]
[WhiteClock "0:00:37"]
[BlackClock "0:01:27"]

1. d4 {[%clk 0:03:00]}  Nf6 {[%clk 0:02:59]} 2. c4 {[%clk 0:03:00]}  b6 {[%clk 0:03:00]} 3. Nf3 {[%clk 0:03:00]}  Bb7 {[%clk 0:03:00]} 4. g3 {[%clk 0:02:59]}  Bxf3 {[%clk 0:02:59]} 5. exf3 {[%clk 0:02:59]}  e6 {[%clk 0:02:59]} 6. Bg2 {[%clk 0:02:59]}  d5 {[%clk 0:02:59]} 7. O-O {[%clk 0:02:53]}  Be7 {[%clk 0:02:58]} 8. Nc3 {[%clk 0:02:53]}  c6 {[%clk 0:02:58]} 9. b3 {[%clk 0:02:52]}  O-O {[%clk 0:02:57]} 10. f4 {[%clk 0:02:52]}  Na6 {[%clk 0:02:54]} 11. Qe2 {[%clk 0:02:50]}  Nc7 {[%clk 0:02:53]} 12. Re1 {[%clk 0:02:49]}  g6 {[%clk 0:02:51]} 13. Bb2 {[%clk 0:02:35]}  Nce8 {[%clk 0:02:51]} 14. Rac1 {[%clk 0:02:31]}  Nd6 {[%clk 0:02:51]} 15. Ba3 {[%clk 0:02:27]}  Nf5 {[%clk 0:02:50]} 16. Bxe7 {[%clk 0:02:25]}  Nxe7 {[%clk 0:02:49]} 17. cxd5 {[%clk 0:02:21]}  Nexd5 {[%clk 0:02:43]} 18. Nxd5 {[%clk 0:02:20]}  cxd5 {[%clk 0:02:42]} 19. Qe5 {[%clk 0:02:18]}  Ne8 {[%clk 0:02:39]} 20. Bh3 {[%clk 0:02:14]}  Qd6 {[%clk 0:02:18]} 21. Qxd6 {[%clk 0:01:53]}  Nxd6 {[%clk 0:02:18]} 22. Rc6 {[%clk 0:01:52]}  Rfd8 {[%clk 0:02:17]} 23. Bf1 {[%clk 0:01:49]}  Rac8 {[%clk 0:02:17]} 24. Rec1 {[%clk 0:01:49]}  Rxc6 {[%clk 0:02:17]} 25. Rxc6 {[%clk 0:01:49]}  Nf5 {[%clk 0:02:15]} 26. Rc7 {[%clk 0:01:48]}  a5 {[%clk 0:02:14]} 27. Rb7 {[%clk 0:01:40]}  Rd6 {[%clk 0:02:14]} 28. Bb5 {[%clk 0:01:40]}  Nxd4 {[%clk 0:02:12]} 29. Be8 {[%clk 0:01:39]}  f6 {[%clk 0:02:10]} 30. Kf1 {[%clk 0:01:23]}  e5 {[%clk 0:02:09]} 31. fxe5 {[%clk 0:01:23]}  fxe5 {[%clk 0:02:09]} 32. Ke1 {[%clk 0:01:14]}  Kf8 {[%clk 0:02:06]} 33. Ba4 {[%clk 0:01:11]}  h5 {[%clk 0:02:05]} 34. Kd2 {[%clk 0:01:10]}  Nf3+ {[%clk 0:02:01]} 35. Ke3 {[%clk 0:01:08]}  Nxh2 {[%clk 0:02:01]} 36. f4 {[%clk 0:01:05]}  Ng4+ {[%clk 0:02:00]} 37. Kd3 {[%clk 0:01:03]}  exf4 {[%clk 0:01:57]} 38. gxf4 {[%clk 0:01:03]}  Rf6 {[%clk 0:01:55]} 39. Bd7 {[%clk 0:00:57]}  Rxf4 {[%clk 0:01:51]} 40. Bxg4 {[%clk 0:00:56]}  Rxg4 {[%clk 0:01:50]} 41. Rxb6 {[%clk 0:00:56]}  h4 {[%clk 0:01:51]} 42. Rb8+ {[%clk 0:00:49]}  Kg7 {[%clk 0:01:50]} 43. Rb7+ {[%clk 0:00:47]}  Kf6 {[%clk 0:01:46]} 44. Ke3 {[%clk 0:00:46]}  d4+ {[%clk 0:01:37]} 45. Kf3 {[%clk 0:00:46]}  Rg3+ {[%clk 0:01:37]} 46. Kf4 {[%clk 0:00:44]}  g5+ {[%clk 0:01:37]} 47. Ke4 {[%clk 0:00:44]}  d3 {[%clk 0:01:37]} 48. Rb6+ {[%clk 0:00:44]}  Kg7 {[%clk 0:01:37]} 49. Kf5 {[%clk 0:00:44]}  h3 {[%clk 0:01:30]} 50. Rb7+ {[%clk 0:00:43]}  Kf8 {[%clk 0:01:29]} 51. Kf6 {[%clk 0:00:42]}  Ke8 {[%clk 0:01:29]} 52. a4 {[%clk 0:00:38]}  h2 {[%clk 0:01:27]} 53. Rh7 {[%clk 0:00:37]}  d2 {[%clk 0:01:27]} 0-1


[Site "https://www.chess.com"]